bitfinex/quotes_ETHUSD_20250126
["timestamp","ask_amount","ask_price","bid_price","bid_amount"]
[1737932691135,0.8107,3284.3,3283.8,3.0452]
[1737932691443,0.2423,3284.6,3283.6,3.04543]
[1737932691648,0.8107,3284.7,3284.0,3.045]
[1737932691796,0.8107,3285.1,3283.7,3.04534]
[1737932691997,0.03805489,3285.0,3283.4,0.7686]
[1737932692257,0.8102,3284.9,3283.6,3.04538]
[1737932692394,3.04475,3284.4,3283.6,3.04538]
[1737932692603,0.304475,3284.3,3283.6,3.04538]
[1737932692944,0.304475,3284.3,3283.1,3.04583]
[1737932692945,0.304475,3284.3,3283.7,3.04533]
[1737932693160,3.04475,3284.4,3283.7,3.04533]
[1737932693363,3.04479,3284.3,3283.7,3.04533]
[1737932693932,3.04517,3283.9,3282.5,3.04645]
[1737932694140,3.04507,3284.0,3283.3,3.04563]
[1737932694462,3.79891,3284.2,3283.3,3.04563]
[1737932694761,0.684371,3284.1,3283.5,3.04552]
[1737932694964,0.754,3284.2,3283.7,3.04533]
[1737932695172,0.754,3284.2,3283.5,3.04552]
[1737932695472,0.754,3284.2,3283.7,3.04525]
[1737932695631,0.754,3284.2,3283.4,0.02307432]
[1737932695963,3.84342,3284.7,3284.1,3.04497]
[1737932696167,0.384342,3284.6,3283.2,0.7851]
[1737932696352,0.384342,3284.6,3283.9,3.0451]
[1737932696553,3.04451,3284.6,3283.9,3.0451]
[1737932697519,3.04451,3284.6,3284.0,3.04502]
[1737932697758,3.04451,3284.6,3283.8,3.04522]
[1737932697974,3.04461,3284.5,3283.8,3.04522]
[1737932698157,3.04472,3284.4,3283.7,3.04533]
[1737932698357,0.30827822,3284.4,3283.7,3.04533]
[1737932698540,3.04461,3284.5,3283.8,3.04524]
[1737932698882,3.84347,3284.7,3284.0,3.04504]
[1737932699040,0.799,3284.7,3284.4,3.04462]
[1737932699574,0.79793042,3284.7,3284.2,3.04487]
[1737932700168,0.79793042,3284.7,3284.3,3.04478]
[1737932700440,0.79793042,3284.7,3284.0,3.04497]
[1737932700650,3.84242042,3284.7,3284.0,3.04497]
[1737932701256,0.79793042,3284.7,3284.0,3.04497]
[1737932701593,3.04487,3284.3,3283.6,3.04543]
[1737932701807,3.04487,3284.3,3282.4,3.04651]
[1737932701808,0.03806655,3284.2,3282.5,0.815]
[1737932702101,0.55,3283.9,3283.2,3.0458]
[1737932702593,3.04453,3284.6,3283.7,3.04525]
[1737932702594,0.7906,3284.6,3283.7,3.04525]
[1737932702804,1.474109,3284.6,3283.9,3.04512]
[1737932702942,1.474109,3284.6,3284.1,3.04494]
[1737932703140,0.55,3284.4,3283.9,3.04512]
[1737932703340,3.04496,3284.2,3283.5,3.0455]
[1737932703539,0.03806786,3284.1,3283.5,3.0455]
[1737932703738,0.03806786,3284.1,3283.3,3.0457]
[1737932703995,3.59479,3284.3,3283.3,0.30457]
[1737932704191,0.7906,3284.4,3282.8,3.0]
[1737932704192,0.7906,3284.4,3284.2,3.04486]
[1737932704462,0.7906,3284.4,3283.6,3.87788]
[1737932704617,0.7906,3284.4,3284.2,3.0448]
[1737932705529,0.7906,3284.4,3284.0,3.04505]
[1737932705690,0.7691,3284.8,3284.7,3.04441]
[1737932706019,0.7691,3285.3,3284.7,3.04441]
[1737932706221,5.80007854,3285.2,3284.5,3.04459]
[1737932706721,0.55,3285.1,3284.4,3.04461]
[1737932706928,3.59412,3285.1,3284.4,3.04461]
[1737932707288,3.04414,3285.0,3284.4,3.04461]
[1737932707904,0.55,3285.1,3284.5,3.04458]
[1737932708502,0.55,3285.1,3284.4,3.04461]
[1737932708825,2.23614413,3285.2,3284.4,0.304461]
[1737932708970,2.23614413,3285.2,3284.8,3.04423]
[1737932709591,0.55,3284.9,3284.2,3.04483]
[1737932709799,1.3324,3284.7,3282.9,3.04607]
[1737932709998,0.7824,3283.9,3283.3,3.04566]
[1737932710296,0.7824,3284.3,3284.0,3.04497]
[1737932710491,0.7824,3284.3,3283.8,3.04525]
[1737932710748,0.7824,3284.3,3283.4,3.04562]
[1737932710930,0.7824,3284.3,3284.0,3.04498]
[1737932711279,0.231,3284.4,3284.3,3.04478]
[1737932711634,0.7943,3285.0,3284.9,3.04423]
[1737932712050,2.23614413,3285.2,3285.1,3.04404]
[1737932712617,2.9883,3285.4,3285.1,3.04404]
[1737932712777,0.55,3285.3,3284.7,3.04438]
[1737932713221,3.59387,3285.3,3284.7,3.04438]
[1737932713621,0.55,3285.3,3284.7,3.04434]
[1737932713940,0.7943,3285.4,3285.1,3.04401]
[1737932714430,6.83753,3285.9,3285.3,3.04386]
[1737932714578,0.7942,3285.9,3285.1,3.04404]
[1737932714894,0.7952,3286.3,3286.0,3.04313]
[1737932715097,0.7952,3286.3,3286.1,3.0431]
[1737932715521,0.7952,3286.3,3285.8,3.04339]
[1737932715726,0.7952,3286.3,3285.8,3.04332]
[1737932715926,0.03803913,3286.2,3285.3,3.0438]
[1737932716128,3.59302,3286.2,3285.0,0.7563]
[1737932716439,3.04302,3286.2,3285.5,3.0436]
[1737932717057,0.55,3286.2,3285.3,3.04382]
[1737932717249,3.0433,3286.0,3285.3,3.04382]
[1737932717596,3.0437,3285.5,3284.9,3.04422]
[1737932718245,4.19360539,3285.9,3284.9,3.04422]
[1737932718551,3.04359,3285.6,3284.9,3.04422]
[1737932718848,0.55,3285.8,3284.7,3.348844]
[1737932719029,0.8079,3285.4,3283.9,0.778]
[1737932719353,0.55,3285.1,3284.0,3.04505]
[1737932719649,3.04434,3284.8,3284.1,3.04489]
[1737932719805,3.04414,3285.0,3284.3,3.04476]
[1737932720201,3.04396,3285.2,3284.5,3.04454]
[1737932720405,3.0,3285.3,3284.6,3.04442]
[1737932720819,3.0,3285.3,3284.7,3.04441]
[1737932721000,1.0379,3285.4,3284.9,3.0442]
[1737932721200,0.8079,3285.4,3285.0,3.04407]
[1737932721447,0.03804979,3285.3,3284.8,3.04426]
[1737932721952,0.03804979,3285.3,3284.6,3.04446]
[1737932722118,3.04433,3284.8,3284.1,3.04494]
[1737932722316,3.04461,3284.5,3284.1,0.609009]
[1737932722646,3.04461,3284.5,3283.9,3.04515]
[1737932723258,0.55,3284.9,3284.0,3.04505]
[1737932723483,3.04442,3284.7,3284.0,3.04505]
[1737932723687,3.04407,3285.1,3283.9,6.0903]
[1737932723850,3.04421,3285.0,3284.3,3.04477]
[1737932724053,3.04421,3285.0,3284.1,3.04489]
[1737932724259,6.82703,3285.4,3284.6,3.04449]
[1737932724607,6.82703,3285.4,3284.7,3.04441]
[1737932724892,0.7832,3285.8,3285.6,3.04357]
[1737932725237,0.7832,3285.8,3285.4,3.0437]
[1737932725639,0.7832,3285.8,3285.5,3.04364]
[1737932725967,0.7832,3285.8,3285.4,6.0874]
[1737932726276,3.87373,3286.1,3285.5,3.04364]
[1737932726453,3.87373,3286.1,3285.4,3.0437]
[1737932726649,0.8306,3286.1,3285.4,3.0437]
[1737932727147,0.8306,3286.1,3285.6,3.04355]
[1737932727875,0.8306,3286.1,3285.5,3.04367]
[1737932728378,0.8306,3286.1,3285.7,3.04347]
[1737932728704,3.04254,3286.8,3285.6,0.7895]
[1737932728985,2.23503555,3287.1,3287.0,3.04228]
[1737932729145,0.52787031,3287.4,3287.1,3.04212]
[1737932729340,0.52787031,3287.4,3286.8,3.04243]
[1737932729766,3.56978031,3287.4,3286.6,3.04265]
[1737932729967,3.04191,3287.4,3286.6,3.04265]
[1737932730277,3.346251,3287.3,3286.6,3.04265]
[1737932730863,3.04191,3287.4,3286.7,3.04255]
[1737932731090,3.04191,3287.4,3286.5,3.04274]
[1737932731287,3.0421,3287.2,3286.5,3.04274]
[1737932731475,3.0421,3287.2,3286.6,3.04263]
[1737932732203,3.04175,3287.6,3286.6,3.04263]
[1737932732366,3.04184,3287.5,3286.8,3.04242]
[1737932732719,0.7975,3287.3,3286.7,0.07928677]
[1737932733008,0.55,3287.1,3286.9,0.0776114]
[1737932733302,3.7975,3286.9,3286.1,3.0431]
[1737932733497,3.04256,3286.8,3286.1,3.0431]
[1737932733700,0.7975,3286.9,3286.3,3.04292]
[1737932733901,0.7975,3286.9,3286.6,3.04264]
[1737932734099,3.764,3287.3,3286.7,3.04253]
[1737932734302,3.0422,3287.1,3286.7,0.07766186]
[1737932734512,0.43562,3287.1,3286.7,0.07766186]
[1737932734730,0.43562,3287.1,3286.1,0.608631]
[1737932734876,3.04231,3287.0,3286.8,0.07770315]
[1737932735082,0.43562,3287.1,3286.8,0.07770315]
[1737932735282,3.04279,3286.5,3285.8,3.04336]
[1737932735482,3.04279,3286.5,3285.5,3.04362]
[1737932735483,3.04311,3286.2,3285.5,3.04362]
[1737932735682,3.04311,3286.2,3285.4,3.04375]
[1737932735683,3.04303,3286.2,3285.4,3.04375]
[1737932735905,0.7782,3286.3,3285.6,3.04351]
[1737932736919,3.82122,3286.3,3285.6,3.04351]
[1737932737223,0.7782,3286.3,3285.6,3.04351]
[1737932737424,3.8212,3286.3,3285.6,3.04351]
[1737932737919,3.8212,3286.3,3285.7,3.04347]
[1737932738119,3.8212,3286.3,3285.4,3.04375]
[1737932738288,3.8212,3286.3,3285.6,3.04356]
[1737932738818,3.04303,3286.2,3285.6,3.04356]
[1737932739126,3.04303,3286.2,3285.4,3.426855]
[1737932739296,3.04303,3286.2,3285.5,3.04361]
[1737932739493,3.0,3285.9,3284.8,0.7955]
[1737932739699,3.87499,3285.7,3284.8,3.04424]
[1737932740025,3.87499,3285.7,3285.0,3.04404]
[1737932740923,0.8315,3285.7,3284.6,3.04445]
[1737932741086,0.8315,3285.7,3284.4,3.7955]
[1737932741428,3.04389,3285.3,3284.6,3.04446]
[1737932741724,0.03805171,3285.2,3284.6,4.032924]
[1737932741922,0.8049,3285.1,3284.4,6.04468]
[1737932742127,0.8049,3285.1,3284.6,3.04443]
[1737932742366,0.8049,3285.1,3284.7,3.04439]
[1737932742570,3.04376,3285.5,3285.0,3.04407]
[1737932742571,0.8049,3285.5,3285.0,3.04407]
[1737932742888,0.8049,3285.5,3285.1,3.04404]
[1737932743031,0.8049,3286.0,3284.9,3.04423]
[1737932743236,0.8049,3286.0,3285.3,3.04386]
[1737932743531,3.8482,3286.0,3285.3,3.04386]
[1737932743763,3.8482,3286.0,3285.4,0.06404441]
[1737932744337,3.04331,3285.9,3285.4,0.06404441]
[1737932744573,3.04341,3285.8,3285.4,0.06404441]
[1737932744746,3.04341,3285.8,3285.2,3.04391]
[1737932744950,3.84813,3286.0,3285.3,3.04381]
[1737932745231,0.8049,3286.0,3285.6,3.04356]
[1737932745671,0.8049,3286.0,3285.7,0.06392063]
[1737932745873,3.7728,3286.4,3285.7,0.06392063]
[1737932746091,3.7728,3286.4,3285.9,3.04329]
[1737932746289,3.7728,3286.4,3285.9,3.347619]
[1737932746476,0.7728,3286.4,3285.9,3.347619]
[1737932746681,0.7728,3286.4,3286.1,3.04311]
[1737932746881,3.04257,3286.7,3286.0,0.06380605]
[1737932747194,3.04257,3286.7,3286.1,0.06380605]
[1737932747389,3.04257,3286.7,3286.1,0.70926155]
[1737932747692,3.04257,3286.7,3286.1,3.75234155]
[1737932748188,0.8182,3286.8,3286.1,3.75234155]
[1737932748505,0.8182,3286.8,3286.3,3.04293]
[1737932748797,3.04259,3286.7,3286.4,0.06368231]
[1737932749003,3.04294,3286.3,3285.7,3.04348]
[1737932749366,3.04294,3286.3,3285.8,0.06368231]
[1737932750205,3.0433,3286.0,3285.8,0.06368231]
[1737932750506,3.0433,3286.0,3285.2,3.0439]
[1737932750507,3.0434,3285.8,3285.2,3.0439]
[1737932750663,3.0434,3285.8,3285.3,0.30439]
[1737932750863,3.04352,3285.7,3285.3,0.3659983]
[1737932751098,3.04352,3285.7,3285.3,0.0616083]
[1737932751473,3.04352,3285.7,3285.0,0.7619]
[1737932751691,3.04352,3285.7,3285.4,0.06166786]
[1737932751890,3.04352,3285.7,3285.1,3.04403]
[1737932752105,3.04352,3285.7,3285.5,0.06166786]
[1737932752293,3.04352,3285.7,3285.1,3.424623]
[1737932752492,3.04352,3285.7,3285.6,0.06166786]
[1737932752696,3.04352,3285.7,3285.1,3.424623]
[1737932752897,3.04352,3285.7,3285.6,0.06166786]
[1737932753068,3.04352,3285.7,3285.1,3.424623]
[1737932753268,3.04352,3285.7,3285.6,0.06166786]
[1737932753475,3.04352,3285.7,3285.2,0.4186523]
[1737932753818,3.04368,3285.5,3284.9,3.04422]
[1737932753997,3.04359,3285.6,3285.3,0.06187411]
[1737932754206,3.04369,3285.5,3284.9,3.04422]
[1737932754405,3.04369,3285.5,3285.4,0.06185578]
[1737932754600,3.04369,3285.5,3284.9,3.04422]
[1737932754906,3.04369,3285.5,3285.4,0.06185578]
[1737932755114,3.04396,3285.2,3284.5,0.7605]
[1737932755278,3.04414,3285.0,3284.1,3.79887]
[1737932755467,3.04414,3285.0,3284.2,0.379887]
[1737932755807,3.04414,3285.0,3284.1,0.7539]
[1737932756016,3.08236309,3284.9,3284.2,3.04481]
[1737932756210,3.04436,3284.8,3284.2,3.04481]
[1737932756870,3.04436,3284.8,3284.1,3.79887]
[1737932757107,3.04436,3284.8,3284.1,0.7539]
[1737932757410,3.04436,3284.8,3284.2,3.04488]
[1737932757609,3.04436,3284.8,3284.2,3.424758]
[1737932757816,0.8286,3284.7,3284.3,0.06220881]
[1737932758218,3.04415,3285.0,3284.4,3.04469]
[1737932758382,0.8286,3285.1,3284.2,0.379878]
[1737932758579,0.8286,3285.1,3283.7,0.7539]
[1737932758580,0.8286,3285.1,3284.5,0.06213085]
[1737932758781,3.87267,3285.1,3284.5,3.04459]
[1737932758988,3.87267,3285.1,3284.6,0.06213085]
[1737932759573,0.8286,3285.1,3283.8,3.04525]
[1737932759766,0.8286,3285.1,3284.7,3.10646085]
[1737932760014,0.8286,3285.1,3284.7,3.04433]
[1737932760169,0.8286,3285.1,3284.8,0.06213085]
[1737932761084,3.87264,3285.1,3284.5,3.04458]
[1737932761413,3.87264,3285.1,3284.6,0.304458]
[1737932761621,3.87264,3285.1,3284.6,0.36658885]
[1737932761994,3.87264,3285.1,3284.6,0.06213085]
[1737932761995,3.87269,3285.1,3284.6,0.06213085]
[1737932762327,3.87269,3285.1,3284.3,3.04472]
[1737932762467,3.87269,3285.1,3284.7,0.06257092]
[1737932762668,0.8286,3285.1,3284.6,3.04441]
[1737932762916,0.8286,3285.1,3284.8,0.06257092]
[1737932763227,0.8286,3285.1,3284.9,0.06257092]
[1737932763410,3.04414,3285.0,3284.4,3.04467]
[1737932763573,3.04425,3284.9,3284.2,3.04487]
[1737932763769,3.04425,3284.9,3284.3,0.304487]
[1737932764135,6.91675,3285.1,3284.3,3.349207]
[1737932764272,3.04415,3285.0,3284.3,3.349207]
[1737932764673,3.04432,3284.8,3283.9,3.82278]
[1737932764888,3.04432,3284.8,3284.0,3.04506]
[1737932764889,3.04449,3284.7,3284.0,3.04506]
[1737932765216,3.04449,3284.7,3284.1,3.04496]
[1737932765779,3.04452,3284.6,3283.9,3.04509]
[1737932766072,3.04435,3284.8,3283.9,3.04509]
[1737932766278,3.04459,3284.6,3283.9,3.04509]
[1737932766911,3.40759082,3284.8,3283.6,0.772]
[1737932766912,3.04494,3284.2,3283.6,3.04541]
[1737932767624,3.04542,3283.7,3283.1,3.0459]
[1737932767799,3.349992,3283.6,3282.9,3.85044]
[1737932768003,3.04542,3283.7,3283.0,3.04597]
[1737932769099,3.04556,3283.5,3282.9,0.8044]
[1737932769297,3.04542,3283.7,3282.9,3.85047]
[1737932769486,3.04569,3283.4,3282.8,3.0461]
[1737932769687,3.04545,3283.6,3282.8,0.609235]
[1737932769901,0.7956,3283.8,3282.6,3.04631]
[1737932770314,0.7956,3283.8,3283.2,3.04577]
[1737932771137,0.7956,3283.8,3283.2,3.04574]
[1737932771831,0.7956,3283.8,3283.0,3.04591]
[1737932772033,3.04534,3283.7,3282.5,3.83733]
[1737932772219,0.384094,3283.6,3282.8,3.04617]
[1737932772763,3.04562,3283.4,3282.8,3.04617]
[1737932772961,3.04562,3283.4,3282.9,0.05933304]
[1737932773416,3.04599,3283.0,3282.9,0.05933304]
[1737932773616,3.04609,3282.9,3281.8,0.7665]
[1737932773816,0.304599,3282.9,3282.4,3.04652]
[1737932774016,0.8097,3283.0,3282.4,3.04652]
[1737932774314,0.8097,3283.0,3282.3,3.04662]
[1737932774648,3.85577,3283.0,3282.2,6.1772847]
[1737932774854,0.03807802,3282.9,3282.2,6.1772847]
[1737932775064,3.04637,3282.6,3282.2,3.1306047]
[1737932776091,3.04664,3282.3,3282.2,3.1306047]
[1737932776227,7.41374,3282.3,3282.2,3.1306047]
[1737932777577,3.04653,3282.5,3280.5,3.0483]
[1737932777578,0.8236,3281.1,3280.5,3.0483]
[1737932777728,0.8236,3281.1,3280.3,3.04849]
[1737932777919,0.8236,3281.1,3280.5,3.04824]
[1737932778121,0.8236,3281.1,3280.3,3.04849]
[1737932778371,3.04807,3280.8,3280.0,3.0487]
[1737932778526,3.04807,3280.8,3280.1,3.04865]
[1737932778722,3.04807,3280.8,3280.0,3.04875]
[1737932778940,3.59794,3280.9,3279.6,0.7621]
[1737932779122,3.04804,3280.8,3280.0,3.04869]
[1737932780029,3.04853,3280.3,3279.6,0.7621]
[1737932780236,3.04832,3280.5,3279.4,3.04932]
[1737932780486,3.04832,3280.5,3279.8,3.04895]
[1737932780777,0.8236,3280.6,3279.9,3.04879]
[1737932781335,0.8236,3280.6,3279.5,0.304932]
[1737932781336,3.04858,3280.3,3279.5,3.04916]
[1737932781891,0.55,3279.7,3279.2,4.8e-07]
[1737932782037,0.8246,3279.4,3279.2,4.8e-07]
[1737932782237,0.8246,3279.9,3279.4,3.04929]
[1737932782735,0.8246,3280.3,3279.5,0.05622047]
[1737932783049,0.223,3280.6,3279.5,3.04924]
[1737932783252,0.223,3280.6,3279.9,3.04885]
[1737932783566,0.223,3280.6,3280.0,0.05634925]
[1737932783771,0.8246,3280.7,3280.2,3.04858]
[1737932783940,0.8246,3280.7,3280.0,3.04874]
[1737932784261,0.8246,3280.7,3280.1,0.05634925]
[1737932784668,0.8246,3280.7,3280.2,3.04859]
[1737932785049,0.8246,3280.7,3280.3,0.05624955]
[1737932786186,0.8246,3280.7,3280.4,3.10464955]
[1737932787177,3.04748,3281.4,3281.2,3.04765]
[1737932787178,0.7791,3281.4,3281.2,3.04765]
[1737932787337,4.67982904,3282.1,3281.2,3.04765]
[1737932787561,0.7791,3282.0,3281.7,3.04717]
[1737932787761,0.7791,3282.4,3281.6,3.0472]
[1737932788005,0.03808709,3282.3,3281.3,0.05607478]
[1737932788184,0.7791,3282.1,3279.8,0.8128]
[1737932788384,0.7791,3281.2,3280.6,3.04815]
[1737932788704,0.7791,3281.2,3279.8,0.8128]
[1737932788705,0.7791,3281.2,3280.1,3.04868]
[1737932789005,0.7791,3281.7,3280.9,3.04785]
[1737932789185,0.7791,3281.7,3280.7,3.04812]
[1737932789186,3.82632,3281.7,3280.7,3.04812]
[1737932789357,0.7764,3281.2,3280.3,3.04848]
[1737932789558,3.04796,3280.9,3279.9,3.04887]
[1737932789758,3.04796,3280.9,3280.1,3.04864]
[1737932790008,3.66134851,3280.9,3280.1,3.04864]
[1737932790210,0.7764,3280.7,3279.9,3.04887]
[1737932790406,0.7764,3280.7,3279.4,0.7605]
[1737932790594,0.7764,3280.7,3280.0,3.04877]
[1737932790595,3.82459,3280.7,3280.0,3.04877]
[1737932790908,0.7764,3280.7,3280.3,3.04849]
[1737932791107,0.7764,3280.7,3280.0,3.04868]
[1737932791312,3.8246,3280.7,3279.8,3.04891]
[1737932791473,3.43071,3280.6,3279.9,3.04886]
[1737932793204,3.59833,3280.5,3279.7,3.04904]
[1737932793393,3.59833,3280.5,3279.2,3.00000048]
[1737932793394,0.7851,3280.0,3279.2,4.8e-07]
[1737932793587,3.08706687,3279.9,3279.2,3.04951048]
[1737932793794,0.7851,3280.0,3279.3,3.04941]
[1737932794114,0.7851,3280.0,3279.2,4.8e-07]
[1737932794115,0.7851,3280.0,3279.5,3.04923]
[1737932794320,1.19088,3280.0,3279.5,3.04923]
[1737932794507,0.7851,3280.0,3279.2,4.8e-07]
[1737932794819,0.7851,3280.0,3279.6,3.04907]
[1737932795638,0.7851,3280.0,3279.4,3.04932]
[1737932796037,0.7851,3280.0,3279.2,4.8e-07]
[1737932796038,3.08700433,3279.9,3279.2,4.8e-07]
[1737932796242,0.38721043,3279.8,3279.2,3.04944048]
[1737932796442,0.7851,3280.0,3279.4,3.04929]
[1737932797009,3.8339,3280.0,3279.4,3.04929]
[1737932797211,0.7851,3280.0,3279.3,3.04941]
[1737932797411,3.83388,3280.0,3279.3,3.04941]
[1737932797632,3.04888,3279.9,3279.3,3.04941]
[1737932797941,3.04909,3279.7,3279.2,4.8e-07]
[1737932798335,3.04907,3279.7,3279.2,4.8e-07]
[1737932798731,3.08726922,3279.6,3279.2,4.8e-07]
[1737932798920,3.04915,3279.6,3279.2,4.8e-07]
[1737932799128,3.25257492,3279.6,3279.2,4.8e-07]
[1737932799314,0.20342492,3279.6,3279.2,4.8e-07]
[1737932799843,0.52867541,3279.6,3279.2,4.8e-07]
[1737932800847,3.04943,3279.3,3279.2,4.8e-07]
[1737932801247,3.8890548,3279.3,3279.2,0.05581762]
[1737932801427,3.8890548,3279.3,3279.2,4.8e-07]
[1737932801745,3.85093,3279.3,3279.2,4.8e-07]
[1737932802248,7.43905713,3279.3,3279.2,4.8e-07]
[1737932802568,8.44510421,3279.3,3279.2,4.8e-07]
[1737932803148,5.44510421,3279.3,3279.2,4.8e-07]
[1737932803475,8.44510421,3279.3,3279.2,0.05581762]
[1737932803632,8.44510421,3279.3,3279.2,4.8e-07]
[1737932803833,5.44510421,3279.3,3279.2,4.8e-07]
[1737932804034,5.48323559,3279.3,3279.2,4.8e-07]
[1737932804547,5.44510421,3279.3,3279.2,4.8e-07]
[1737932804753,5.48323367,3279.3,3279.2,4.8e-07]
[1737932806886,5.44510421,3279.3,3279.2,4.8e-07]
[1737932807085,0.8015,3279.3,3279.2,4.8e-07]
[1737932807266,3.85093,3279.3,3279.2,4.8e-07]
[1737932808173,0.7535,3279.6,3279.2,4.8e-07]
[1737932808362,0.7535,3279.6,3279.3,0.05246487]
[1737932808570,0.7535,3279.6,3279.2,3.04943048]
[1737932808767,0.7535,3279.6,3279.3,0.05246487]
[1737932808952,0.7535,3279.6,3279.2,3.04943048]
[1737932809162,0.7535,3279.9,3279.3,0.05246487]
[1737932809480,0.7535,3279.9,3279.3,3.04943]
[1737932809852,0.7535,3279.9,3279.5,3.04922]
[1737932810143,0.7535,3279.9,3279.4,0.05269009]
[1737932810288,0.7535,3279.9,3279.4,3.04933]
[1737932810489,0.7535,3279.9,3279.5,0.05253841]
[1737932812235,1.0472,3280.3,3279.7,3.04899]
[1737932812530,1.416663,3280.3,3280.0,3.04876]
[1737932812827,0.62014415,3280.8,3280.1,0.05231783]
[1737932813134,0.62014415,3280.8,3280.2,3.04853]
[1737932813331,0.62014415,3280.8,3280.4,3.04837]
[1737932813516,1.0472,3281.0,3280.4,3.04837]
[1737932813723,4.09505,3281.0,3280.5,0.05230864]
[1737932813903,0.409505,3280.9,3280.4,3.04837]
[1737932814231,1.0472,3281.0,3280.5,0.05173871]
[1737932814430,0.60415381,3281.2,3280.3,0.02314654]
[1737932814630,0.8242,3281.5,3280.4,3.10012871]
[1737932814930,0.7823,3280.7,3280.4,0.05173871]
[1737932815131,3.04831,3280.5,3280.4,0.05173871]
[1737932815331,3.04841,3280.4,3279.8,3.0489]
[1737932815849,0.383061,3280.5,3279.9,0.05154576]
[1737932816196,0.383061,3280.5,3279.9,3.10038576]
[1737932816396,0.383061,3280.5,3279.9,0.05154576]
[1737932816728,0.42117219,3280.5,3279.9,0.05154576]
[1737932816947,3.04864,3280.2,3279.9,0.05154576]
[1737932817127,3.08675415,3280.2,3279.5,3.04922]
[1737932817691,0.8038,3280.0,3279.6,0.04990924]
[1737932817900,0.03811783,3279.9,3279.6,0.04990924]
[1737932818059,3.08699776,3279.9,3279.3,3.0494]
[1737932818252,3.08699776,3279.9,3279.4,0.0499689]
[1737932818980,3.04907,3279.7,3279.2,4.8e-07]
[1737932819197,3.0489,3279.9,3279.5,0.0499689]
[1737932819359,0.8038,3280.0,3279.2,4.8e-07]
[1737932819563,3.85221,3280.4,3279.7,3.04905]
[1737932819881,3.04852,3280.3,3279.8,0.05009742]
[1737932820197,3.04869,3280.1,3279.5,3.04923]
[1737932820354,3.04861,3280.2,3279.9,0.04998726]
[1737932820702,0.69387679,3280.3,3279.2,4.8e-07]
[1737932820994,3.83193,3279.3,3279.2,4.8e-07]
[1737932821152,4.09405821,3279.3,3279.2,4.8e-07]
[1737932821359,4.80839603,3279.3,3279.2,4.8e-07]
[1737932821700,4.77026782,3279.3,3279.2,4.8e-07]
[1737932822673,4.80839558,3279.3,3279.2,4.8e-07]
[1737932823361,3.04997,3278.8,3278.6,0.1745299]
[1737932823573,3.04998,3278.7,3278.6,0.1745299]
[1737932823989,3.04985,3278.9,3278.6,0.1745299]
[1737932824175,3.08767115,3279.2,3278.6,0.1745299]
[1737932824371,0.1758969,3279.1,3278.6,0.1745299]
[1737932824595,0.60090681,3279.6,3278.6,0.1745299]
[1737932824596,0.223,3279.2,3278.6,0.1745299]
[1737932824893,0.223,3279.2,3279.0,3.04969]
[1737932825134,0.223,3279.2,3278.8,3.04987]
[1737932825272,0.223,3279.2,3278.6,3.2245899]
[1737932825469,3.04961,3279.1,3278.6,0.1745299]
[1737932825884,0.223,3279.2,3278.6,0.1745299]
[1737932826182,0.223,3279.2,3278.6,0.80201489]
[1737932826389,0.223,3279.2,3278.8,3.04986]
[1737932826707,0.223,3279.2,3279.0,3.0497]
[1737932827201,0.223,3279.2,3278.8,3.04986]
[1737932827399,0.223,3279.2,3278.9,3.04977]
[1737932827609,0.7628,3279.7,3278.6,0.1745299]
[1737932827785,8.29878,3280.0,3278.8,6.89498]
[1737932827975,3.04878,3280.0,3279.3,3.04935]
[1737932828497,3.04878,3280.0,3279.4,3.04932]
[1737932828914,1.64738102,3280.2,3279.0,3.04971]
[1737932829098,1.0398,3280.2,3279.6,3.0491]
[1737932829264,1.0398,3280.2,3279.0,0.7952]
[1737932829462,0.223,3280.2,3279.5,3.04918]
[1737932829700,0.223,3280.2,3279.6,3.04914]
[1737932830120,3.04916,3279.6,3279.0,0.7952]
[1737932830334,1.15857124,3280.1,3278.7,3.04998]
[1737932830647,3.04914,3279.7,3278.9,3.04973]
[1737932830804,0.03812226,3280.0,3278.9,3.04973]
[1737932831009,3.04916,3279.6,3278.9,3.04973]
[1737932831332,3.04929,3279.5,3278.9,3.04973]
[1737932831516,3.04929,3279.5,3278.8,3.04988]
[1737932831724,3.354076,3279.6,3278.8,3.04988]
[1737932831927,0.8329,3279.5,3278.6,0.1745299]
[1737932832097,3.04943,3279.3,3278.6,3.2245699]
[1737932832432,0.69697032,3279.3,3278.6,0.1745299]
[1737932832635,3.04968,3279.1,3278.6,0.1745299]
[1737932832943,3.04968,3279.1,3278.7,0.04321104]
[1737932833436,3.27268,3279.1,3278.7,0.04321104]
[1737932833606,0.223,3279.1,3278.7,0.04321104]
[1737932834091,0.223,3279.1,3278.7,3.09319104]
[1737932834943,0.223,3279.1,3278.7,0.04321104]
[1737932835094,0.223,3279.1,3279.0,3.04971]
[1737932835508,0.223,3279.1,3279.0,3.09308616]
[1737932835739,3.04906,3279.7,3279.0,3.09308616]
[1737932836209,3.04906,3279.7,3279.0,0.04337616]
[1737932836553,0.8124,3279.9,3279.3,3.04942]
[1737932836852,4.03763421,3279.9,3279.3,3.04942]
[1737932837008,4.03763421,3279.9,3279.4,0.04336698]
[1737932838842,4.03763421,3279.9,3279.2,3.04949]
[1737932839140,4.03763421,3279.9,3279.1,3.04955]
[1737932839141,3.04896,3279.8,3279.3,0.04336698]
[1737932839638,4.03766421,3279.9,3279.4,0.04336698]
[1737932839941,4.03766421,3279.9,3279.2,3.04946]
[1737932840143,3.04896,3279.8,3279.1,3.04955]
[1737932840371,3.04896,3279.8,3279.3,0.04336698]
[1737932840567,3.04896,3279.8,3279.2,3.0495]
[1737932841070,3.04896,3279.8,3279.3,0.04336698]
[1737932841367,3.04896,3279.8,3279.2,3.0495]